Workbook

Sheet Contents

Sheet Introduction
A1: Cost of Attendance - How to use this spreadsheet
A3: This spreadsheet is to help you and us
A4: a. To make the process as speedy and as simple as possible
A5: b. To cut out the risk of your application being rejected and you having to start again
A7: There is nothing which tells The Courtauld that everything the applicant needs to do has been completed.
A8: There is nothing which tells the applicant that everything they need to do has been completed.
A9: Information sent by the US Dept of Ed to schools also includes all those who may not apply or enroll.
A10: There are sets of documents which we have to receive before we can even start to certify or complete your loans
A12: You must complete and send us the spreadsheet "Cost of Attendance" tab
A14: It is used to help you and the school in several ways
A15: 1. you tell us what we need to know about you before we can start to process your application (Section 1)
A16: 2. you can re-calculate your costs (Sections 2 & 3) and if needed you can change our values shown in blue
A17: 3. it calculates how much you need and are eligible to borrow (Section 4)
A18: 4. it tells you whether the school will accept the costs you have proposed (Section 5)
A19: 5. It tells you how much of your loan will be retained by the government as origination fee
A20: 6. It calculates the cost of the originations fees and increases the PLUS loan to cover them
A21: 6. you tell us how much you want to borrow (Section 6) You adjust the figures shown in blue
A23: You must also complete the Checklist
A24: The checklist helps you ensure that everything needed has been completed for us to process your application; without it nothing can be processed
A25: The checklist will tell you the consequence of anything missing
A26: If anything is missing or incomplete, your application will be rejected.
A28: For your information …
A29: The Basis of Costs tab shows you how we calculated the Cost of Attendance
A30: To ensure that your application is as smooth as possible, you must complete the Cost of Attendance spreadsheet and the checklist
A32: When we will receive this spreadsheet - and ALL the required attachments - that is our trigger that you have done everything for us to start on your loan
A33: If anything on the checklist is missing we will not be able to start to process your application
A34: It will not be the school's decision to reject your application or to process your loan with things missing
A35: If anything on the checklist or spreadsheet is missing or untrue your application will be rejected by the ED Dept's systems

Sheet Cost of Attendance
C2: Cost of Attendance | E2: v.180215
C3: & Loan Calculation
C4: ="for Academic Year "& 'School DATA (Office Use Only)'!D6 -> for Academic Year 2021/22 | E4: uncle | F4: p/w hint
C5: RETAIL (Main Street) RATE - NOT INTERBANK RATE | H5: ='School DATA (Office Use Only)'!H48 -> 97966 | I5: Max CoA before Interview
C6: This form and exchange rates revised | E6: 2018-06-15 | H6: ='School DATA (Office Use Only)'!H50 -> 102108.0025 | I6: Max Loan after grossing up for Fees adjustments
C7: Worst possible rate for Retail US Dollar Rate - best guess | D7: =IF(('School DATA (Office Use Only)'!I44>0),'School DATA (Office Use Only)'!I44,'School DATA (Office Use Only)'!H44) -> 1.4 | E7: ='School DATA (Office Use Only)'!I29 -> 2021-05-27
C8: Next review date for Exchange Rate | E8: ='School DATA (Office Use Only)'!I30 -> 2021-12-01 | G8: Depend | H8: Choice | I8: Year
C9: No of Weeks for Undergraduates | D9: ='School DATA (Office Use Only)'!E11 -> 41 | G9: I | H9: N | I9: 1
C10: No of Weeks for Postrgraduates | D10: ='School DATA (Office Use Only)'!E13 -> 52 | G10: D | H10: Y | I10: 2
I11: 3 or above | M11: ONLY ENTER DATES
A12: 1 | C12: COMPLETE THE YELLOW BOXES ONLY | G12: Private Loan | H12: STANDING DATA | I12: Loan Dates | L12: DISBURSEMENTS | M12: Disburse Dates | N12: VALUES ARE AUTOMATIC
G13: Government Loan | H13: Undergrads | I13: Start | J13: ='School DATA (Office Use Only)'!D7 -> 2021-09-27 | L13: =COUNT(M13:M19) -> 3 | M13: =IF(('School DATA (Office Use Only)'!D18>10/10/2010),'School DATA (Office Use Only)'!D18,"") -> 2021-09-27 | N13: =ROUND((IF((ISNUMBER(M13)),(D90/L13),"")),0) -> 
A14: Family Name (Surname) | C14: surname | I14: End | J14: ='School DATA (Office Use Only)'!D11 -> 2022-07-12 | L14: put 2nd date | M14: =IF(('School DATA (Office Use Only)'!D19>10/10/2010),'School DATA (Office Use Only)'!D19,"") -> 2022-01-10 | N14: =ROUND((IF((ISNUMBER(M14)),(D90/L13),"")),0) -> 
A15: Given Name (Forename) | C15: forename | H15: Postgrads | I15: Start | J15: ='School DATA (Office Use Only)'!D7 -> 2021-09-27 | L15: put 3rd date or blank | M15: =IF(('School DATA (Office Use Only)'!D20>10/10/2010),'School DATA (Office Use Only)'!D20,"") -> 2022-04-20 | N15: =ROUND((IF((ISNUMBER(M15)),(D90/L13),"")),0) -> 
A16: Address Line 1 | C16: line 1 | I16: End | J16: ='School DATA (Office Use Only)'!E7 -> 2022-09-26 | L16: put 4th date or blank | M16: =IF(('School DATA (Office Use Only)'!D21>10/10/2010),'School DATA (Office Use Only)'!D21,"") ->  | N16: =IF((ISNUMBER(M16)),(ROUND((D90/L13),0)),"") -> 
A17: Address Line 2 | C17: line 2 | G17: sub entitled, conditions are per cell | N17: =SUM(N13:N16) -> 
A18: Address Line 3 | C18: line 3 | G18: inc BA, UG/PG, porev degree,yr
A19: Address Line 4 | C19: line 4 | G19: but not dependency
A20: Zipcode / Postcode | C20: postcode/zipcode | G20: tot below is max
A21: Email | C21: email address | G21: MAXIMUM LOAN LEVELS FOR THIS STU | H21: MAXIMUM LOAN LEVELS FOR THIS STU | I21: MAX THIS STU | K21: MAXIMUM LOAN LEVELS AVAILABLE
A22: Date of Birth dd/mm/yyyy | C22: dd/mm/yyyy | G22: Sub | H22: Unsub Depend | I22: Unsub Ind | K22: Sub | L22: Unsub Depend | M22: Unsub Ind
A23: Full Social Security Number | C23: Full Social Security Number | G23: =IF(D30="Y",0,K23) -> 0 | H23: =IF((D30="N"),K23,0) -> 0 | I23: =IF((D30="N"),M23,0) -> 20500 | J23: postgraduates | K23: 0 | L23: 0 | M23: 20500
A24: Application/Student Number | C24: Application/Student Number | G24: =IF((AND(D30="Y",D31="N",D33=1)),K24,0) -> 0 | H24: =IF((AND(D30="Y",D34="D",D33=1)),L24,0) -> 0 | I24: =IF((AND(D30="Y",D34="I",D33=1)),M24,0) -> 0 | J24: Undergraduate1 | K24: 3500 | L24: 2000 | M24: 6000
A25: Full name of your course | C25: Course Name | G25: =IF((AND(D30="Y",D31="N",D33=2)),K25,0) -> 0 | H25: =IF((AND(D30="Y",D34="D",D33=2)),L25,0) -> 0 | I25: =IF((AND(D30="Y",D34="I",D33=2)),M25,0) -> 0 | J25: Undergraduate2 | K25: 4500 | L25: 2000 | M25: 6000
A26: Then answer these | G26: =IF((AND(D30="Y",D31="N",D33>2)),K26,0) -> 0 | H26: =IF((AND(D30="Y",D34="D",D33>2)),L26,0) -> 0 | I26: =IF((AND(D30="Y",D34="I",D33>2)),M26,0) -> 0 | J26: Undergraduate>2 | K26: 5500 | L26: 2000 | M26: 7000
B27: =IF((D27="Y"),1,0) -> 0 | C27: Does your course - whole course, in any year - have any time in USA other than vacations? Only answer Y or N | D27: N | E27: =IF((D27="Y"),"PRIVATE LOANS ONLY","") ->  | G27: =IF((AND(D30="Y", D31="Y", D32="Y")),K27,0) -> 0 | H27: =IF((AND(D30="Y",D31="Y",D32="Y")),I27,0) -> 0 | I27: =IF((AND(D30="Y", D31="Y", D32="Y")),M27,0) -> 0 | J27: Law | K27: =K23 -> 0 | L27: =L23 -> 0 | M27: =M23 -> 20500
C28: Does your course involve any time at another university or school, or campus? Only answer Y or N | D28: N | E28: =IF((D28="Y"),"For school codes - click below","") ->  | G28: =MAX(G23:G27) -> 0 | I28: =MAX(H23:I27) -> 20500 | J28: Max Loan Available | L28: From July 2012 there is no Subsidised Loan for postgraduates
B29: =IF((D29="N"),1,0) -> 0 | C29: =IF((D28="Y"),"Is that school in the List of federal School Codes at the website link now showing in red box","do not adjust this line") -> do not adjust this line | D29: Y | E29: =IF((D28="Y"),"https://fafsa.ed.gov/FAFSA/app/schoolSearch?locale=en_EN","") -> 
C30: Is this course for a Bachelor degree such as BSc or BA? Only answer Y or N | D30: N | E30: =IF((D29="n"), "PRIVATE LOANS ONLY","") ->  | H30: CONVERTING FEES AND CONTRIBUTIONS TO DOLLARS | L30: Undergrad Courses which could get Postgrad funding
C31: =IF(D30="N", "Do not adjust this line", "Are you taking an undergraduate course but at graduate/professional level? Only answer Y or N") -> Do not adjust this line | D31: N | G31: Rate | H31: Convert £ | I31: Already $ | J31: Actual Loans | L31: Law
C32: =IF((AND( D30="Y", D31="Y")), "Do you already have another undergraduate degree - answer Y or N", "Do not adjust this line" ) -> Do not adjust this line | D32: N | G32: =D7 -> 1.4 | H32: =D36*G32 -> 0 | I32: =E36 -> 0 | J32: Fees
C33: What will be your year of study - select from the dropbox only - WARNING: this must match your FAFSA & SAR | D33: 1 | G33: =G32 -> 1.4 | H33: =D37*G33 -> 0 | I33: =E37 -> 0 | J33: Sponsors
C34: What does your SAR say for "dependancy status" Only answer I or D | D34: D | G34: =G33 -> 1.4 | H34: =D38*G34 -> 0 | I34: =E38 -> 0 | J34: School Aid
C35: What is you EFC (top right of front page of SAR) Even zero must be entered | D35: 0 | G35: =G34 -> 1.4 | H35: =D39*G35 -> 0 | I35: =E39 -> 0 | J35: Other Aid £UK
C36: Enter the Tuition Fees - only write the figures - don't type in the £ sign as it is already formatted | D36: 0 | G36: =G34 -> 1.4 | H36: =D40*G36 -> 0 | I36: =E40 -> 0 | J36: Other Aid $USA
C37: How much of the tuition fees will be paid to your school by a sponsor (only enter in the $ or £ box - not both) | D37: 0 | E37: 0 | I37: =SUM(H33:I36) -> 0 | J37: Deduct from "Need"
C38: How much has already been awarded by this school as a Scholarship or Financial Aid | D38: 0
C39: How much has been awarded by any other Scholarship or Financial Aid in the UK | D39: 0 | H39: CONVERTING WEEKLY COSTS TO DOLLARS
A40: Calcs above/beside | C40: How much has been awarded by any other Scholarship or Financial Aid from the USA | E40: 0 | G40: UG Weeks | H40: UG Costs | I40: PG Costs | J40: PG Weeke
A41: =SUM(B27:B41) -> 0 | B41: =IF((D41="PRIVATE LOAN"),1,0) -> 0 | C41: Are you seeking a Government or Private loan (Sallie Mae), select from this drop-box | D41: Government Loan | E41: =IF((A41>0),"PRIVATE LOANS ONLY","") ->  | G41: =D9 -> 41 | H41: =E44*G32*G41 -> 0 | I41: =J41*G32*E44 -> 0 | J41: =D10 -> 52
A42: 2 | B42: Weekly Essential Costs - School Maximum Estimates - you can adjust the values but may be asked for proofs of your adjusted costs | G42: =D9 -> 41 | H42: =E45*G33*G42 -> 0 | I42: =J42*G33*E45 -> 0 | J42: =J41 -> 52
D43: School's Estimate per week | E43: Your Request | G43: =G42 -> 41 | H43: =E46*G32*G43 -> 0 | I43: =J43*G34*E46 -> 0 | J43: =J42 -> 52
C44: Room - Rent | D44: ='School DATA (Office Use Only)'!I11 -> 326 | E44: 0 | G44: =G43 -> 41 | H44: =E47*G33*G44 -> 0 | I44: =J44*G35*E47 -> 0 | J44: =J43 -> 52
C45: Board - Food and Power | D45: ='School DATA (Office Use Only)'!H12+'School DATA (Office Use Only)'!H13 -> 100 | E45: 0 | G45: =G44 -> 41 | H45: =E48*G34*G45 -> 0 | I45: =J45*G36*E48 -> 0 | J45: =J44 -> 52
C46: Books & Copying | D46: ='School DATA (Office Use Only)'!H14 -> 15 | E46: 0
C47: Travelcard/Transport Costs | D47: ='School DATA (Office Use Only)'!H15 -> 30 | E47: 0
C48: Personal | D48: ='School DATA (Office Use Only)'!H16 -> 60 | E48: 0 | H48: CONVERTING ANNUAL COSTS TO DOLLARS | K48: Origination Fees
A50: 3 | B50: Single Costs for the year - you may adjust or add in these columns - you may be asked for proof | D50: School's Estimate per Year | E50: =E43 -> Your Request | G50: =D7 -> 1.4 | H50: =E51*G50 -> 0 | L50: % Rate | M50: Interest | N50: Final | O50: Actual
C51: ='School DATA (Office Use Only)'!G19 -> 2 Midweek return flights with BA from Los Angeles to London | D51: ='School DATA (Office Use Only)'!H19 -> 1550 | E51: 0 | G51: =G50 -> 1.4 | H51: 0 | K51: Loan Type | M51: Rebate | N51: Rate | O51: Factor
C52: ='School DATA (Office Use Only)'!G20 -> Visa Application / Flights to Interview | D52: ='School DATA (Office Use Only)'!H20 -> 341 | E52: 0 | G52: 1.4 | H52: 0 | K52: Sub Orig Fee | L52: ='School DATA (Office Use Only)'!D38 -> 1.057 | M52: ='School DATA (Office Use Only)'!E38 -> 0 | N52: =L52-M52 -> 1.057 | O52: =N52*0.01 -> 0.01057
C53: ='School DATA (Office Use Only)'!G21 -> PC / Laptop | D53: ='School DATA (Office Use Only)'!H21 -> 500 | E53: 0 | G53: 1.4 | H53: 0 | K53: Unsub Orig Fee | L53: ='School DATA (Office Use Only)'!D39 -> 1/057 | M53: ='School DATA (Office Use Only)'!E39 -> 0 | N53: =L53-M53 ->  | O53: =N53*0.01 -> 
C54: ='School DATA (Office Use Only)'!G22 -> Visa £322 and NHS Charge £150 | D54: ='School DATA (Office Use Only)'!H22 -> 472 | E54: 0 | G54: 1.4 | H54: 0 | K54: PLUS Orig fee | L54: ='School DATA (Office Use Only)'!D40 -> 4.228 | M54: ='School DATA (Office Use Only)'!E40 -> 0 | N54: =L54-M54 -> 4.228 | O54: =N54*0.01 -> 0.04228
C55: ='School DATA (Office Use Only)'!G23 -> Academic field trips | D55: ='School DATA (Office Use Only)'!H23 -> 750 | E55: 0 | G55: 1.4 | H55: 0
C56: ='School DATA (Office Use Only)'!G24 -> Add any other essential costs - write here - only in £ | D56: ='School DATA (Office Use Only)'!H24 -> 0 | E56: =D56 -> 0 | G56: 1.4 | H56: 0
C57: ='School DATA (Office Use Only)'!G25 -> Add any other essential costs - write here - only in £ | D57: ='School DATA (Office Use Only)'!H25 -> 0 | E57: 0
A58: 4 | C58: YOUR ESTIMATED FINAL COSTS & US ED DEPT MAXIMUM LOAN ELIGIBILITY - YOU MAY BORROW LESS IF YOU CHOOSE | H58: FINAL CALCULATIONS | K58: SUB NEED | L58: UNSUB NEED | M58: ORIG FEE NOT INC | N58: ORIG FEE INC
C59: =G59 -> Requested Cost of Attendance (Values rounded) | D59: =H59 -> $ | G59: Requested Cost of Attendance (Values rounded) | H59: $ | J59: CoA | K59: =H69 -> 0
C60: =G60 -> Tuition Fees | D60: =H60 -> 0 | G60: Tuition Fees | H60: =ROUND(H32,0) -> 0 | J60: Less EFC | K60: =-D35 -> 0
C61: =G61 -> Room | D61: =H61 -> 0 | G61: Room | H61: =ROUND((IF(D30="N",I41,H41)),0) -> 0 | J61: Need for Sub | K61: =IF((SUM(K59:K60)>0),(SUM(K59:K60)),0) -> 0 | N61: =IF((K61<K63),(K63-K61),0) -> 0
C62: Board | D62: 0 | G62: Board | H62: =ROUND((IF(D30="N",I42,H42)),0) -> 0 | J62: Sub available | K62: =G28 -> 0
C63: Books | D63: 0 | G63: Books | H63: =ROUND((IF(D30="N",I43,H43)),0) -> 0 | J63: Sub Calc | K63: =IF((((K61/(100-N52))*100)<K62),((K61/(100-N52))*100),K62) -> 0 | M63: =IF((N61>0),0,(K63*O52)) -> 0
C64: Travel | D64: 0 | G64: Travel | H64: =ROUND((IF(D30="N",I44,H44)),0) -> 0
C65: Personal | D65: 0 | G65: Personal | H65: =ROUND((IF(D30="N",I45,H45)),0) -> 0 | J65: Need for Unsub | L65: =IF((N61>0),(K59+N61-K63),(K59-K63+M63)) -> 0 | N65: =IF((((L67-L65)>0)),(L67-L65),0) -> 
C66: Other Essential Costs | D66: 0 | G66: Other Essential Costs | H66: =SUM(H50:H56) -> 0 | J66: Unsub available | L66: =G28+I28-K63 -> 20500
C67: Total Cost of Attendance | D67: 0 | G67: Total Cost of Attendance | H67: =SUM(H60:H66) -> 0 | J67: Unsub Calc | L67: =IF((((L65/(100-N53))*100)<L66),((L65/(100-N53))*100),L66) ->  | M67: =+IF((N65>0),0,(L67*O53)) -> 
C68: Adjust for Sponsorship, Awards or other Aid | D68: 0 | G68: Adjust for Sponsorship, Awards or other Aid | H68: =ROUND((-I37),0) -> 0
C69: Total Requested Cost of Attendance | D69: 0 | G69: Total Requested Cost of Attendance | H69: =ROUND((SUM(H67:H68)),0) -> 0 | J69: PLUS NEED
C70: =IF(((SUM(B27:B30))>0),"As you will be in places not allowed by your government you are not entitled to Federal Loans - only private loans","") ->  | J70: Need for PLUS | K70: =IF((N65=0),(K59-K63-L67+M63+M67),0) -> 
C71: =IF((A41>0),"For more information - click on this link to see your government regulations","") ->  | D71: =IF((A41>0),"https://ifap.ed.gov/dpcletters/GEN1420.html","") -> 
C72: =IF((A41>0),"Maximum Private (Sallie Mae) loan we will certify is","") ->  | D72: =IF((A41>0),H69,"") -> 
C73: =IF((A41>0),"You must now go to the Sallie Mae website to apply for your loan. When done, send this form to us, same address as for federal loans, then we can connect to Sallie Mae to certify your application","") ->  | G73: Maximum Govt. Loan you can borrow | H73: $ | J73: PLUS Available | K73: =H5-K63-L67 -> 
C74: =IF((A41>0),"As you will apply for a Sallie Mae loan there is no need to complete anything below this line."," ") ->  | G74: You could have borrowed these Govt. Loans
C75: =IF((A41>0),"",(IF((D41=G12),G74,G73))) -> Maximum Govt. Loan you can borrow | G75: Subsidised - Adjusted by EFC | H75: =K63 -> 0 | J75: PLUS Calc | K75: =IF((((K70/(100-N54)*100))<K73),((K70/(100-N54)*100)),(((K73+M63+M67)/(100-N54))*100)) -> 
C76: =IF((A41>0),"",(IF((D30="N"),L28,G75))) -> From July 2012 there is no Subsidised Loan for postgraduates | D76: =IF((A41>0),0,H75) -> 0 | E76: =IF((N61>0),"Grossed up for fees","") ->  | G76: Unsubsudised | H76: =L67 -> 
C77: =IF((A41>0),"",G76) -> Unsubsudised | D77: =IF((A41>0),0,H76) ->  | E77: =IF((N65>0),"Grossed up for fees","") ->  | G77: =IF((J78=2),K78,(IF((H69>H5),"PLUS Loan to fulfil this CoA",""))) ->  | I77: =IF((K73<K70),K70,"") ->  | J77: Indep Undergrad Score
C78: =G77 ->  | E78: =I77 ->  | G78: =IF((J78=2),"","Maximum PLUS Loan allowed for this CoA before grossing up for fees") -> Maximum PLUS Loan allowed for this CoA before grossing up for fees | H78: =IF((J78=2),"",(IF((K70<K73),(K70-M67-M63),K73))) ->  | J78: =(IF(AND(D31="N",D30="Y"),1,0))+(IF((D34="I"),1,0)) -> 0 | K78: Independent Undergraduates are not eligible for a PLUS Loan
C79: =IF((A41>0),"",G78) -> Maximum PLUS Loan allowed for this CoA before grossing up for fees | D79: =IF((A41>0),0,H78) ->  | G79: Undergraduate treated as Graduate PLUS Loan
C80: =IF((A41>0),"",G80) -> Total Eligible before adjustment for Fees | D80: =IF((A41>0),0,H80) ->  | G80: Total Eligible before adjustment for Fees | H80: =SUM(H75:H79) -> 
A82: 5 | C82: SCHOOL COMMENT ON YOUR PROPOSED COSTS & ELIGIBLE LOANS
C83: =IF(H67>H5, I83," ") ->  | H83: Qualify 1 | I83: THE COSTS YOU HAVE SUGGESTED ARE TOO HIGH TO BE ACCEPTABLE
C84: =IF((A41>0),"",(IF(H67>H5, I84,I85))) -> You are allowed to borrow up to the values above | H84: Qualify 2 | I84: Provide evidence of your needs for any increase to PLUS to be considered or borrow less in Section 6
A85: 6 | C85: =IF((D41=G12),"THIS SECTION DOES NOT APPLY TO SALLIE MAE LOANS","YOU TELL US HOW MUCH WOULD YOU LIKE TO BORROW - YOU MAY REDUCE THE FIGURES IN BLUE") -> YOU TELL US HOW MUCH WOULD YOU LIKE TO BORROW - YOU MAY REDUCE THE FIGURES IN BLUE | H85: OK Statement | I85: You are allowed to borrow up to the values above
A86: Max Allowed Adjusted for Fees | B86: Government Fees *** Deducted | C86: State how much you would like to borrow for each loan type - adjust the figures in blue in the "Your Request" column | D86: Your Request - you may only leave or reduce these values | E86: After Origination Fees You Get
A87: =IF((A41>0),0,(IF((D41=G12),0,G88))) -> 0 | B87: =O52 -> 0.01057 | C87: =C76 -> From July 2012 there is no Subsidised Loan for postgraduates | D87: =A87 -> 0 | E87: =ROUND(((D87*(1-O52))),0) -> 0 | F87: =IF((D87>A87),("You cannot borrow more than "&A87),"") ->  | G87: Max Loans Allowed Adjusted for Fees | H87: After Origination Fees You Get
A88: =IF((A41>0),0,(IF((D41=G12),0,G89))) ->  | B88: =O53 ->  | C88: Unsubsudised | D88: =A88 ->  | E88: =ROUND(((D88*(1-O53))),0) ->  | F88: =IF((D88>A88),("You cannot borrow more than "&A88),"") ->  | G88: =ROUND(K63,0) -> 0 | H88: =ROUND(((G88*(1-O52))),0) -> 0
A89: =IF((A41>0),0,(IF((D41=G12),0,G90))) ->  | B89: =O54 -> 0.04228 | C89: =IF((J78=2),K78,"PLUS Loan (Adjusted up to include all fees)") -> PLUS Loan (Adjusted up to include all fees) | D89: =A89 ->  | E89: =ROUND(((D89*(1-O54))),0) ->  | F89: =IF((D89>A89),("You cannot borrow more than "&ROUND(A89,2)),"") ->  | G89: =ROUND(L67,0) ->  | H89: =ROUND(((G89*(1-O53))),0) -> 
A90: =IF((A41>0),0,(IF((D41=G12),0,G91))) ->  | C90: Total (after rounding, may be slightly higher than total of section 4) | D90: =SUM(D87:D89) ->  | E90: =SUM(E87:E89) ->  | F90: =IF((E90<>D80),"Includes $"&(E90-D80)&" rounding differences","") ->  | G90: =IF((J78=2),"",(ROUND(K75,0))) ->  | H90: =ROUND(((G90*(1-O54))),0) -> 
A91: 7 School Responses | C91: =IF((A41>0),"",(IF((D90<(H5*1.04)),I92,I94))) ->  | G91: =SUM(G88:G90) ->  | H91: =SUM(H88:H90) -> 
C92: =IF((A41>0),"",(IF((D90<(H5*1.04)),I93,I95))) ->  | H92: OK Statement 1 | I92: We will check everything you have provided with the USDE data and regulations
C93: =IF((A41>0),"REMEMBER - TELL US WHEN YOU HAVE DONE YOUR SALLIE MAE APPLICATION SO WE CAN CERTIFY IT","") ->  | H93: OK Statement 2 | I93: If everything is correct we will originate your loans and issue a certificate for visa application
A94: 8 U.S. Government Fees deducted from your disbursement | H94: Qualify 1 | I94: You must provide evidence of your costs/needs before we can process your application
B95: =B87 -> 0.01057 | C95: =C87&" Origination Fee of "&L52&"% less Interest Rebate of "&M52&"%" -> From July 2012 there is no Subsidised Loan for postgraduates Origination Fee of 1.057% less Interest Rebate of 0% | H95: Qualify 2
B96: =B88 ->  | C96: =C88&" Origination Fee of "&L53&"% less Interest Rebate of "&M53&"%" -> Unsubsudised Origination Fee of 1/057% less Interest Rebate of 0%
B97: =B89 -> 0.04228 | C97: =C89&" Origination Fee of "&L54&"% less Interest Rebate of "&M54&"%" -> PLUS Loan (Adjusted up to include all fees) Origination Fee of 4.228% less Interest Rebate of 0%
C98: The exchange rate is deliberately high to allow for unforseen circumstances

Sheet Checklist
A1: Checklist for Direct List Loan Applications | E1: Allowed
A2: Please put Y or N in the response box for each question | E2: Y
A3: The default setting is "N"
E4: N
B5: Response | C5: School Comments
A6: Cost of Attendance | B6: Only Y or N
A7: Have you entered your name and full address on the Cost of Attendance | B7: n | C7: =IF((B7="n"),"Go back to the Cost of Attendance and enter it or we cannot process your application","") -> Go back to the Cost of Attendance and enter it or we cannot process your application
A8: Have you entered your SSN on the Cost of Attendance | B8: n | C8: Go back to the Cost of Attendance and enter it or we cannot process your application
A9: Have you correctly entered your email address on the Cost of Attendance | B9: n | C9: Go back to the Cost of Attendance and enter it or we cannot process your application
A10: Have you entered the EFC from your SAR on the Cost of Attendance | B10: n | C10: Go back to the Cost of Attendance and enter it or we cannot process your application
A11: Have you entered your tuition fees on the Cost of Attendance | B11: n | C11: Go back to the Cost of Attendance and enter it or we cannot process your application
A12: Have you entered on the Cost of Attendance how much you wish to borrow (Section 6) | B12: n | C12: Go back to the Cost of Attendance and enter it or we cannot process your application
A15: Selective Service
A16: Are you female | B16: N
A17: =IF((B16="N"),"Have you signed up for selective service","") -> Have you signed up for selective service | B17: n
A18: =IF((B17="N"),"Have you attached proof you are exempt from selective service","") -> Have you attached proof you are exempt from selective service | B18: n | C18: =IF(((B18="n")*AND(B17="n")),"Application Rejected","") -> Application Rejected
A20: Promissory Notes
A21: Have you attached your Stafford MPN | B21: n | C21: =IF((B21="n"),"Application Rejected","") -> Application Rejected
A22: Have you applied for a PLUS Loan | B22: n
A23: =IF((B22="Y"),"Have you attached your PLUS MPN","") ->  | B23: n | C23: =IF(((B23="n")*AND(B22="y")),"Application Rejected","") -> 
A24: =IF((B22="Y"),"Have you attached your Credit Check result email or screenshot","") ->  | B24: n | C24: =IF(((B24="n")*AND(B22="y")),"Application Rejected","") -> 
A26: Entrance Counselling
A27: Have you attached your entrance counselling completion | B27: n | C27: =IF((B27="n"),"Application Rejected","") -> Application Rejected
C28: =IF((B28="n"),"Application Rejected","") -> 
A29: If there are no school comments then we have sufficient information to start the origination process. If anything is missing or incorrect, then we cannot originate your loans.

Sheet Basis of Costs
A1: How these Costs are Calculated
A3: Exchange Rate | B3: The exchange rate is set by a review of High Street banks and selecting the worst possible rate and incrementing it by the worst possible commission. This is sufficient to enable loans to be calculated and originated. The rate will not be re-assessed until after the end of the registration period. Should the rate change unfavourably once the course has started, then the whole Cost of Attendance can be reviewed again.
A5: Room - Rent | B5: First, check the prices of all halls of residence and select the highest below self-contained suite. Second, search for the average price of a room in a shared flat and for a studio flat in the close area (use the web and general estate agent searches). Select the higher average price of the two scenarios.
A7: Board - Food and Power | B7: Keep all shopping receipts for a month, This covers all the bills for a month for a normal household including alcohol, all household cleaning materials and all food etc. Divide the weekly average by 1 less than are in the household. This is more than enough to cover the food, provisions and power for a single person.
A9: Books & Copying | B9: The cost of a single course pack (for the term) applied for each week which is more than sufficient for book purchase.
A11: Travel | B11: Cost of zone 1-2 London weekly travel card
A13: Personal | B13: The Office Manager's 'pocket money' for a week
A15: 2 return flights | B15: Cost of two BA return flights Heathrow/LA travelling midweek
A17: PC | B17: Cost of a good quality laptop from a PC chainstore
A19: Visa application | B19: Visa costs plus cost of midweek return next day flight US New York to LA and rounded
A21: PLUS Loan | B21: The balance of the cost of attendance after Sub & Unsub and grossed up to include Origination Fee on Sub & Unsub added to PLUS loan needs and then increased again to include the origination fee charged on PLUS Loans as quoted on Direct Lending website, and reduced by any rebate offered by USDE. This ensures that the cash you receive, after foreign exchange and deduction of origination fees, is the sterling cost of attendance.
A23: Government Fees | B23: Your government takes an origination fee.
B24: There was a partial refund of the origination fee which has been withdrawn since 2012 entry
B25: If those repayments are not all on-time then the refund which was given to you will be charged back to you
A27: Year Dates | B27: These dates are set to minimise the risk of your loan being rejected by overlapping a previous year.
B28: Postgraduates - The loan year will be 365 days
B29: Undergraduates - The loan year will be start of academic year to end of final term
A31: Disbursement Dates | B31: The transfer of funds from ED Dept to our UK bank and a refund for your living money takes a good 10 days.
B32: WARNING - THESE DATES ARE EXPECTED AND NOT ACTUAL. Allow for about 3 days delay - just in case.

Sheet Visa Letter (Office Use Only) (hidden)
A2: ='Cost of Attendance'!C15&" "&'Cost of Attendance'!C14 -> forename surname
A3: ='Cost of Attendance'!C16 -> line 1
A4: ='Cost of Attendance'!C17 -> line 2
A5: ='Cost of Attendance'!C18 -> line 3
A6: ='Cost of Attendance'!C19 -> line 4
A7: ='Cost of Attendance'!C20 -> postcode/zipcode
A12: Notification of Student Loan
A13: ='Cost of Attendance'!C4 -> for Academic Year 2021/22
A16: This is to certify that
A18: Student Name | B18: ='Cost of Attendance'!C15&" "&'Cost of Attendance'!C14 -> forename surname
A19: Date of Birth | B19: ='Cost of Attendance'!C22 -> dd/mm/yyyy
A20: Student/Applicant ID | B20: ='Cost of Attendance'!C24 -> Application/Student Number
A22: has been accepted in a degree-granting program (or otherwise eligible program) at our school.
A24: We participate in the William D. Ford Federal Direct Loan (Direct Loan) Program administered by the United States (U.S.) Department of Education.
A25: Eligible students from the U.S. who attend our school may borrow through the Direct Loan Program.
A26: Undergraduate students and graduate/professional students may receive Direct Subsidized Loans and Direct Unsubsidized Loans.
A27: Graduate/professional students and parents may receive Direct PLUS Loans.
A29: Based on our calculation of the student’s financial needs and Direct Loan eligibility for the loan period
A30: Start Date | B30: =IF(('Cost of Attendance'!D30="n"),'Cost of Attendance'!J15,'Cost of Attendance'!J13) -> 2021-09-27
A31: End Date | B31: =IF(('Cost of Attendance'!D30="n"),'Cost of Attendance'!J16,'Cost of Attendance'!J14) -> 2022-09-26
A33: the student (or, in some cases, the student’s parent) will receive the following Direct Loan awards
A34: which come from the US Dept of Education and are administered through this school.
A35: Loan Type | B35: Loan Amount
A36: Direct Subsidized Loan | B36: ='Cost of Attendance'!D87 -> 0
A37: Direct Unsubsidized Loan | B37: ='Cost of Attendance'!D88 -> 
A38: Direct PLUS Loan | B38: ='Cost of Attendance'!D89 -> 
A39: Total | B39: ='Cost of Attendance'!D90 -> 
A41: The initial anticipated disbursement dates are as follows (subject to change and notice via email):
A42: ='Cost of Attendance'!M13 -> 2021-09-27 | B42: ='Cost of Attendance'!N13 -> 
A43: ='Cost of Attendance'!M14 -> 2022-01-10 | B43: ='Cost of Attendance'!N14 -> 
A44: ='Cost of Attendance'!M15 -> 2022-04-20 | B44: ='Cost of Attendance'!N15 -> 
A45: =IF(('Cost of Attendance'!M16>'Cost of Attendance'!J15),'Cost of Attendance'!M16,"") ->  | B45: ='Cost of Attendance'!N16 -> 
A46: Rounding Difference | B46: =B39-(SUM(B42:B45)) -> 
A47: Total | B47: =SUM(B42:B46) -> 
A49: This certificate is only valid
A50: if printed on school headed paper
A51: and signed across the school logo
A52: by the person whose initials are ringed below | B52: This certificate has been issued by Alex Hawkins at the
A53: =(IF(('School DATA (Office Use Only)'!D26>0),'School DATA (Office Use Only)'!D26,""))&" "&(IF(('School DATA (Office Use Only)'!D30>0),'School DATA (Office Use Only)'!D30,"")) -> AH AB
A54: =(IF(('School DATA (Office Use Only)'!D27>0),'School DATA (Office Use Only)'!D27,""))&" "&(IF(('School DATA (Office Use Only)'!D31>0),'School DATA (Office Use Only)'!D31,"")) -> EH KB
A55: =(IF(('School DATA (Office Use Only)'!D28>0),'School DATA (Office Use Only)'!D28,""))&" "&(IF(('School DATA (Office Use Only)'!D32>0),'School DATA (Office Use Only)'!D32,"")) -> TH RB
A56: =(IF(('School DATA (Office Use Only)'!D29>0),'School DATA (Office Use Only)'!D29,""))&" "&(IF(('School DATA (Office Use Only)'!D33>0),'School DATA (Office Use Only)'!D33,"")) -> GF RS
A58: and stamped by the Office stamp | B58: and can be verified by emailing alex.hawkins@courtuald.ac.uk
A61: Date Issued | B61: =TODAY() -> 2021-07-19

Sheet late start letter (hidden)
A1: ='late start Cost of Attendance'!C15&" "&'late start Cost of Attendance'!C14 -> forename surname
A2: ='late start Cost of Attendance'!C16 -> line 1
A3: ='late start Cost of Attendance'!C17 -> line 2
A4: ='late start Cost of Attendance'!C18 -> line 3
A5: ='late start Cost of Attendance'!C19 -> line 4
A6: ='late start Cost of Attendance'!C20 -> postcode/zipcode
A11: Notification of Student Loan
A12: ='Cost of Attendance'!C4 -> for Academic Year 2021/22
A15: This is to certify that
A17: Student Name | B17: =A1 -> forename surname
A18: Date of Birth | B18: ='late start Cost of Attendance'!C22 -> 1952-12-30
A19: Student/Applicant ID | B19: ='late start Cost of Attendance'!C24 -> 201055555
A21: has been accepted in a degree-granting program (or otherwise eligible program) at our school.
A23: We participate in the William D. Ford Federal Direct Loan (Direct Loan) Program administered by the United States (U.S.) Department of Education.
A24: Eligible students from the U.S. who attend our school may borrow through the Direct Loan Program.
A25: Undergraduate students and graduate/professional students may receive Direct Subsidized Loans and Direct Unsubsidized Loans.
A26: Graduate/professional students and parents may receive Direct PLUS Loans.
A28: Based on our calculation of the student’s financial needs and Direct Loan eligibility for the loan period
A29: Start Date | B29: ='late start Cost of Attendance'!D27 -> 2018-04-01
A30: End Date | B30: =IF(('Cost of Attendance'!D30="n"),'Cost of Attendance'!J16,'Cost of Attendance'!J14) -> 2022-09-26
A32: the student (or, in some cases, the student’s parent) will receive the following Direct Loan awards
A33: which come from the US Dept of Education and are administered through this school.
A34: Loan Type | B34: Loan Amount
A35: Direct Subsidized Loan | B35: ='late start Cost of Attendance'!D93 -> 0
A36: Direct Unsubsidized Loan | B36: ='late start Cost of Attendance'!D94 -> 
A37: Direct PLUS Loan | B37: ='late start Cost of Attendance'!D95 -> 
A38: Total | B38: =SUM(B35:B37) -> 
A40: The disbursement dates are as follows:
A41: ='late start Cost of Attendance'!M13 -> 2021-09-27 | B41: ='late start Cost of Attendance'!N13 -> 
A42: ='late start Cost of Attendance'!M14 -> 2022-01-10 | B42: ='late start Cost of Attendance'!N14 -> 
A43: ='late start Cost of Attendance'!M15 -> 2022-04-20 | B43: ='late start Cost of Attendance'!N15 -> 
A44: ='late start Cost of Attendance'!M16 ->  | B44: ='late start Cost of Attendance'!N16 -> 
A45: Rounding Difference | B45: =B38-(SUM(B41:B44)) -> 
A46: Total | B46: =SUM(B41:B45) -> 
A48: This certificate is only valid
A49: if printed on school headed paper
A50: and signed across the coat of arms
A51: by the person whose initials are ringed below
A52: =(IF(('School DATA (Office Use Only)'!D26>0),'School DATA (Office Use Only)'!D26,""))&" "&(IF(('School DATA (Office Use Only)'!D30>0),'School DATA (Office Use Only)'!D30,"")) -> AH AB
A53: =(IF(('School DATA (Office Use Only)'!D27>0),'School DATA (Office Use Only)'!D27,""))&" "&(IF(('School DATA (Office Use Only)'!D31>0),'School DATA (Office Use Only)'!D31,"")) -> EH KB
A54: =(IF(('School DATA (Office Use Only)'!D28>0),'School DATA (Office Use Only)'!D28,""))&" "&(IF(('School DATA (Office Use Only)'!D32>0),'School DATA (Office Use Only)'!D32,"")) -> TH RB
A55: =(IF(('School DATA (Office Use Only)'!D29>0),'School DATA (Office Use Only)'!D29,""))&" "&(IF(('School DATA (Office Use Only)'!D33>0),'School DATA (Office Use Only)'!D33,"")) -> GF RS
A57: and stamped by the Office stamp
A60: Date Issued

Sheet School DATA (Office Use Only) (hidden)
B1: FOR SCHOOL USE ONLY | D1: DON'T TOUCH THE BLUE BOXES - They are calculations which feed other parts of this workbook
D2: School to Complete ONLY the yellow boxes
D3: SCHOOL INFORMATION | H3: MONEY INFORMATION
D5: Academic Year Calculations | H5: Calculates max allowed before prroof of costs needed
A6: 1 | B6: Which Academic Year is this | C6: Year format yyyy/yy | D6: 2021/22 | F6: 6 | G6: Complete this Fee Estimate
C7: Start day of the year | D7: 2021-09-27 | E7: =D7+364 -> 2022-09-26 | G7: Avg highest Tuition Fee charged in London for MSc | H7: 30839 | J7: =H7 -> 30839
C8: When did you complete this form | D8: 2021-07-19
B9: Complete these dates | F9: 7 | G9: Complete these Cost Estimates which are PER WEEK | H9: Calculates school CoA
B10: When do think your undergraduates start to arrive (occupy their bedroom) | D10: 2021-09-27 | E10: Undergrad weeks | G10: What is the highest charge for your halls of residence per week | H10: 326
B11: What is the date of your last Bachelors' graduation ceremony in the summer | D11: 2022-07-12 | E11: =ROUND(((MAX(D11:D12)-D10)/7),0) -> 41 | G11: What is your best estimate at the high-end going rate for a room per week in the area | H11: 300 | I11: =MAX(H10:H11) -> 326
B12: AND/OR | C12: official end of summer term - ONLY if earlier | D12: 2022-07-01 | E12: Postgrad weeks | G12: What is your best estimate for electricity/gas for a week (use our own home direct debits?) | H12: 50
E13: 52 | G13: What is your normal family shopping for a week and adjust for one adult | H13: 50
A14: 2 | B14: What will be the dates your students get their disbursements | G14: What is your best estimate for book buying or photocopying or course packs per week | H14: 15
B15: Your dates in COD might be earlier [to allow processing time] | G15: What is your best estimate at travel costs for the area for a week | H15: 30
B16: Only put in the date against each term | G16: What is your estimate for enough pocket money including beer/nights out/movie/pizza per week | H16: 60 | I16: =SUM(H12:H16) -> 205 | J16: =(SUM(I11:I16))*E13 -> 27612
B17: Do NOT put in a date where you don't have a disbursement | D17: Payment periods - terms
B18: Term 1 [could be autumn or 1st semester] | D18: 2021-09-27 | E18: =D19-1 -> 2022-01-09 | F18: 8 | G18: Look up these costs on the web
B19: Term 2 [could be spring - after Christmas - or 2nd semester] | D19: 2022-01-10 | E19: =IF((D20>0),(D20-1),(MAX(D10:D11))) -> 2022-04-19 | G19: 2 Midweek return flights with BA from Los Angeles to London | H19: 1550 | J19: =H19*2 -> 3100
B20: Term 3 [could be summer - after Easter] | D20: 2022-04-20 | E20: =IF((D21>0),(D21-1),(MAX(D11:D12))) -> 2022-07-12 | G20: Visa Application / Flights to Interview | H20: 341
B21: Term 4 [could be the writing up term after May/June exams if you have such a term] | E21: =IF((D22>0),(D22-1),(MAX(D11:D12))) -> 2022-07-12 | G21: PC / Laptop | H21: 500
E22: =E18 -> 2022-01-09 | F22: PG T1 | G22: Visa £322 and NHS Charge £150 | H22: 472
A23: 3 | B23: What are the initials of your staff allowed to sign visa letters USE BLOCK CAPS | E23: =IF((D20>1),(D20-1),E7) -> 2022-04-19 | F23: PG T2 | G23: Academic field trips | H23: 750
C24: Only put in the staff you authorise | E24: =IF((D21>1),(D21-1),E7) -> 2022-09-26 | F24: PG T3 | G24: Add any other essential costs - write here - only in £ | H24: 0
C25: Do not put in initials where you don't have staff | E25: =IF((D22>1),(D22-1),E7) -> 2022-09-26 | F25: PG T4 | G25: Add any other essential costs - write here - only in £ | H25: 0 | J25: =SUM(H20:H25) -> 2063
C26: person 1 | D26: AH
C27: person 2 | D27: EH
C28: person 3 | D28: TH | F28: 9 | G28: Go to the banks near you and collect their exchange rates | I28: Calculates exchange rate for CoA
C29: person 4 | D29: GF | G29: When did you do this | H29: Write in the date | I29: 2021-05-27 | J29: London
C30: person 5 | D30: AB | G30: When - long after the first disbursement - will you review the exchange rate | H30: Write in the date | I30: 2021-12-01
C31: person 6 | D31: KB | G31: If any bank showed a commission rate then enter it against that bank | H31: Bank Number | I31: Rate | J31: Commission %
C32: person 7 | D32: RB | G32: Do not write the name of any bank | H32: Bank 1 | I32: 1.41 | J32: 0
C33: person 8 | D33: RS | H33: Bank 2 | I33: 1.39 | J33: 0
H34: Bank 3
A35: 4 | B35: These are 01 Oct 2015 - http://ifap.ed.gov/dpcletters/GEN1507.html | H35: Bank 4
B36: Be absolutely sure you are looking at the right year | D36: Calculates gross loan to cash | H36: Bank 5
B37: Rate from 1st Oct 2014 | C37: Loan Type | D37: Origination Fee % | E37: Rebate % | G37: only 3 banks would accept or exchange dollars | H37: Bank 6
C38: Subsidised Loans | D38: 1.057 | E38: 0 | H38: Bank 7
C39: Unsubsidised Loans | D39: 1/057 | E39: 0 | H39: Bank 8
C40: PLUS Loans | D40: 4.228 | E40: 0 | H40: Bank 9
C41: Worst Fee Rate | D41: =MAX(D38:D40) -> 4.228 | H41: Bank 10
H42: Worst case rates | I42: =MAX(I32:I41) -> 1.41 | J42: =MAX(J32:J41) -> 0
A43: 5 | B43: These are 15/16 - If you know levels have changed, go to the USDE website and find the loan levels for each type of student
B44: The information in the FSA Handbook is confusing so use another site to confirm details | G44: Worst combination goes to the CoA | H44: =IF((I44>0),I44,(ROUND((I42+(I42*(J42/100))),2))) -> 1.4 | I44: 1.4
D45: Loan values eligible
B46: Undergrads | C46: Subsidised | D46: Dependent Unsubsidised | E46: Independent Unsubsidised | G46: Worst case costs at selected or calculated exchange rate | H46: =ROUND(((SUM(J7:J25))*H44),0) -> 89060
B47: Year 1 | C47: 3500 | D47: 2000 | E47: 6000 | G47: and inflated by 10% | H47: =ROUND((H46*0.1),0) -> 8906
B48: Year 2 | C48: 4500 | D48: 2000 | E48: 6000 | H48: =SUM(H46:H47) -> 97966
B49: Year 3 | C49: 5500 | D49: 2000 | E49: 7000 | G49: plus worst origination rates | H49: =H48/100*D41 -> 4142.00248
B50: Year 4 | C50: 5500 | D50: 2000 | E50: 7000 | G50: Max Loans allowed before review | H50: =SUM(H48:H49) -> 102108.0025
B51: Postgrads | C51: 0 | D51: 0 | E51: 20500
A54: 10 | B54: Calculating fields for late starters - do not adjust these fields
C55: Start | D55: End | E55: weeks
B56: PG | C56: ='late start Cost of Attendance'!D27 -> 2018-04-01 | D56: =E7 -> 2022-09-26 | E56: =ROUND(((D56-C56)/7),0) -> 234
B57: UG | C57: =C56 -> 2018-04-01 | D57: =D11 -> 2022-07-12 | E57: =ROUND(((D57-C57)/7),0) -> 223

Sheet Pvt L. Letter (Office Use Only) (hidden)
A1: ='Cost of Attendance'!C15&" "&'Cost of Attendance'!C14 -> forename surname
A2: ='Cost of Attendance'!C16 -> line 1
A3: ='Cost of Attendance'!C17 -> line 2
A4: ='Cost of Attendance'!C18 -> line 3
A5: ='Cost of Attendance'!C19 -> line 4
A6: ='Cost of Attendance'!C20 -> postcode/zipcode
A11: Notification of Student Loan
A12: ='Cost of Attendance'!C4 -> for Academic Year 2021/22
A15: This is to certify that
A17: Student Name | B17: ='Cost of Attendance'!C15&" "&'Cost of Attendance'!C14 -> forename surname
A18: Date of Birth (dd/mm/yyyy) | B18: ='Cost of Attendance'!C22 -> dd/mm/yyyy
A19: Student/Applicant ID | B19: ='Cost of Attendance'!C24 -> Application/Student Number
A21: has been accepted in a degree-granting program (or otherwise eligible program) at our school.
A23: Eligible students from the U.S. who attend our school may borrow private loans through Sallie Mae.
A24: The School certifies the value of these loans and receives the disbursements to give to the student.
A26: We have certified a loan with Sallie Mae as follows:
A27: Start Date | B27: =IF(('Cost of Attendance'!D30="n"),'Cost of Attendance'!J15,'Cost of Attendance'!J13) -> 2021-09-27
A28: End Date | B28: =IF(('Cost of Attendance'!D30="n"),'Cost of Attendance'!J16,'Cost of Attendance'!J14) -> 2022-09-26
A30: the student will receive the following Private Loan awards:
A31: Sallie Mae Smart Loan | B31: ='Cost of Attendance'!E90 -> 
A33: The disbursement dates are as follows:
A34: ='Cost of Attendance'!M13 -> 2021-09-27 | B34: =B31 -> 
A38: Total | B38: =SUM(B34:B37) -> 
A40: This certificate is only valid
A41: if printed on school headed paper
A42: and signed across the coat of arms
A43: by the person whose initials are ringed below
A44: =(IF(('School DATA (Office Use Only)'!D26>0),'School DATA (Office Use Only)'!D26,""))&" "&(IF(('School DATA (Office Use Only)'!D30>0),'School DATA (Office Use Only)'!D30,"")) -> AH AB
A45: =(IF(('School DATA (Office Use Only)'!D27>0),'School DATA (Office Use Only)'!D27,""))&" "&(IF(('School DATA (Office Use Only)'!D31>0),'School DATA (Office Use Only)'!D31,"")) -> EH KB
A46: =(IF(('School DATA (Office Use Only)'!D28>0),'School DATA (Office Use Only)'!D28,""))&" "&(IF(('School DATA (Office Use Only)'!D32>0),'School DATA (Office Use Only)'!D32,"")) -> TH RB
A47: =(IF(('School DATA (Office Use Only)'!D29>0),'School DATA (Office Use Only)'!D29,""))&" "&(IF(('School DATA (Office Use Only)'!D33>0),'School DATA (Office Use Only)'!D33,"")) -> GF RS
A49: and stamped by the Office stamp
A52: Date Issued | B52: =TODAY() -> 2021-07-19

Sheet late start Cost of Attendance (hidden)
C2: Cost of Attendance | E2: v.180215
C3: & Loan Calculation
C4: ="for Academic Year "& 'School DATA (Office Use Only)'!D6 -> for Academic Year 2021/22 | E4: uncle | F4: p/w hint
C5: RETAIL (Main Street) RATE - NOT INTERBANK RATE | H5: ='School DATA (Office Use Only)'!H48 -> 97966 | I5: Max CoA before Interview
C6: This form and exchange rates revised | E6: 2018-06-15 | H6: ='School DATA (Office Use Only)'!H50 -> 102108.0025 | I6: Max Loan after grossing up for Fees adjustments
C7: Worst possible rate for Retail US Dollar Rate - best guess | D7: =IF(('School DATA (Office Use Only)'!I44>0),'School DATA (Office Use Only)'!I44,'School DATA (Office Use Only)'!H44) -> 1.4 | E7: ='School DATA (Office Use Only)'!I29 -> 2021-05-27
C8: Next review date for Exchange Rate | E8: ='School DATA (Office Use Only)'!I30 -> 2021-12-01 | G8: Depend | H8: Choice | I8: Year
C9: No of Weeks for Undergraduates and % of 9 months sub/unsub loan allowed | D9: ='School DATA (Office Use Only)'!E57 -> 223 | E9: =ROUND((D9/36),2) -> 6.19 | G9: I | H9: N | I9: 1
C10: No of Weeks for Postrgraduates and % of 12 months sub/unsub loan allowed | D10: ='School DATA (Office Use Only)'!E56 -> 234 | E10: =ROUND((D10/52),2) -> 4.5 | G10: D | H10: Y | I10: 2
I11: 3 or above | M11: ONLY ENTER DATES
A12: 1 | C12: COMPLETE THE YELLOW BOXES ONLY | G12: Private Loan | H12: STANDING DATA | I12: Loan Dates | L12: DISBURSEMENTS | M12: Disburse Dates | N12: VALUES ARE AUTOMATIC
G13: Government Loan | H13: Undergrads | I13: Start | J13: =D27 -> 2018-04-01 | L13: =COUNT(M13:M19) -> 3 | M13: =IF(('School DATA (Office Use Only)'!D18>'late start Cost of Attendance'!D27),'School DATA (Office Use Only)'!D18,"") -> 2021-09-27 | N13: =IF((ISNUMBER(M13)),(ROUND((D96/L13),0)),"") -> 
A14: Family Name (Surname) | C14: surname | I14: End | J14: ='School DATA (Office Use Only)'!D11 -> 2022-07-12 | L14: put 2nd date | M14: =IF(('School DATA (Office Use Only)'!D19>'late start Cost of Attendance'!D27),'School DATA (Office Use Only)'!D19,"") -> 2022-01-10 | N14: =IF((ISNUMBER(M14)),(ROUND((D96/L13),0)),"") -> 
A15: Given Name (Forename) | C15: forename | H15: Postgrads | I15: Start | J15: =D27 -> 2018-04-01 | L15: put 3rd date or blank | M15: =IF(('School DATA (Office Use Only)'!D20>'late start Cost of Attendance'!D27),'School DATA (Office Use Only)'!D20,"") -> 2022-04-20 | N15: =IF((ISNUMBER(M15)),(ROUND((D96/L13),0)),"") -> 
A16: Address Line 1 | C16: line 1 | I16: End | J16: ='School DATA (Office Use Only)'!E7 -> 2022-09-26 | L16: put 4th date or blank | M16: =IF(('School DATA (Office Use Only)'!D21>'late start Cost of Attendance'!D27),'School DATA (Office Use Only)'!D21,"") ->  | N16: =IF((ISNUMBER(M16)),(ROUND((D96/L13),0)),"") -> 
A17: Address Line 2 | C17: line 2 | N17: =SUM(N13:N16) -> 
A18: Address Line 3 | C18: line 3
A19: Address Line 4 | C19: line 4
A20: Zipcode / Postcode | C20: postcode/zipcode
A21: Email | C21: email address | H21: MAXIMUM LOAN LEVELS FOR THIS STU | K21: MAXIMUM LOAN LEVELS AVAILABLE
A22: Date of Birth dd/mm/yyyy | C22: 1952-12-30 | G22: Sub | H22: Unsub Depend | I22: Unsub Ind | K22: Sub | L22: Unsub Depend | M22: Unsub Ind | N22: Pro Rata Factor
A23: Full Social Security Number | C23: 123 45 6789 | G23: =IF(D31="Y",0,(K23*N23)) -> 0 | I23: =IF((D31="N"),(M23*N23),0) -> 92250 | J23: postgraduates | K23: 0 | L23: 0 | M23: 20500 | N23: =E10 -> 4.5
A24: Application/Student Number | C24: 201055555 | G24: =IF((AND(D31="Y",D32="N",D34=1)),(K24*N24),0) -> 0 | H24: =IF((AND(D31="Y",D35="D",D34=1)),(L24*N24),0) -> 0 | I24: =IF((AND(D31="Y",D35="I",D34=1)),(M24*N24),0) -> 0 | J24: Undergraduate1 | K24: 3500 | L24: 2000 | M24: 6000 | N24: =E9 -> 6.19
A25: Full name of your course | C25: MSc Gastronomy and Taxidermy | G25: =IF((AND(D31="Y",D32="N",D34=2)),(K25*N25),0) -> 0 | H25: =IF((AND(D31="Y",D35="D",D34=2)),(L25*N25),0) -> 0 | I25: =IF((AND(D31="Y",D35="I",D34=2)),(M25*N25),0) -> 0 | J25: Undergraduate2 | K25: 4500 | L25: 2000 | M25: 6000 | N25: =N24 -> 6.19
G26: =IF((AND(D31="Y",D32="N",D34>2)),(K26*N26),0) -> 0 | H26: =IF((AND(D31="Y",D35="D",D34>2)),(L26*N26),0) -> 0 | I26: =IF((AND(D31="Y",D35="I",D34>2)),(M26*N26),0) -> 0 | J26: Undergraduate>2 | K26: 5500 | L26: 2000 | M26: 7000 | N26: =N25 -> 6.19
A27: Then answer these | C27: On what date will you start the course | D27: 2018-04-01
B28: =IF((D28="Y"),1,0) -> 0 | C28: Does your course - whole course, in any year - have any time in USA other than vacations? Only answer Y or N | D28: N | E28: =IF((D28="Y"),"PRIVATE LOANS ONLY","") ->  | G28: =IF((AND(D31="Y", D32="Y", D33="Y")),(K28*N28),0) -> 0 | H28: =IF((AND(D32="Y",D36="D",D35>2)),(L28*N28),0) -> 0 | I28: =IF((AND(D31="Y", D32="Y", D33="Y")),(M28*N28),0) -> 0 | J28: Law | K28: =K23 -> 0 | L28: =L23 -> 0 | M28: =M23 -> 20500 | N28: =N26 -> 6.19
C29: Does your course involve any time at another university or school, or campus? Only answer Y or N | D29: N | E29: =IF((D29="Y"),"For school codes - click below","") ->  | G29: =MAX(G23:G28) -> 0 | I29: =MAX(H23:I28) -> 92250 | J29: Max Loan Available | L29: From July 2012 there is no Subsidised Loan for postgraduates
B30: =IF((D30="N"),1,0) -> 0 | C30: =IF((D29="Y"),"Is that school in the List of federal School Codes at the website link now showing in red box","do not adjust this line") -> do not adjust this line | D30: Y | E30: =IF((D29="Y"),"https://fafsa.ed.gov/FAFSA/app/schoolSearch?locale=en_EN","") -> 
C31: Is this course for BSc or BA or BLL? Only answer Y or N | D31: N | H31: CONVERTING FEES AND CONTRIBUTIONS TO DOLLARS | L31: Undergrad Courses which could get Postgrad funding
C32: =IF(D31="N", "Do not adjust this line", "Are you taking a profesional course but at undergraduate level? Only answer Y or N") -> Do not adjust this line | D32: N | G32: Rate | H32: Convert £ | I32: Already $ | J32: Actual Loans | L32: Law
C33: =IF((AND( D31="Y", D32="Y")), "Do you already have another undergraduate degree - answer Y or N", "Do not adjust this line" ) -> Do not adjust this line | D33: N | G33: =D7 -> 1.4 | H33: =D37*G33 -> 30800 | I33: =E37 -> 0 | J33: Fees
C34: What will be your year of study - select from the dropbox only | D34: 1 | G34: =G33 -> 1.4 | H34: =D38*G34 -> 0 | I34: =E38 -> 0 | J34: Sponsors
C35: What does your SAR say for "dependancy status" Only answer I or D | D35: I | G35: =G34 -> 1.4 | H35: =D39*G35 -> 0 | I35: =E39 -> 0 | J35: School Aid
C36: What is you EFC (top right of front page of SAR) Even zero must be entered | D36: 0 | G36: =G35 -> 1.4 | H36: =D40*G36 -> 0 | I36: =E40 -> 0 | J36: Other Aid £UK
C37: Enter Tuition Fee for the remainder of this school year - write the figures not the £ sign which is already formatted | D37: 22000 | G37: =G35 -> 1.4 | H37: =D41*G37 -> 0 | I37: =E41 -> 0 | J37: Other Aid $USA
C38: How much of the tuition fees will be paid to your school by a sponsor (only enter in the $ or £ box - not both) | D38: 0 | E38: 0 | I38: =SUM(H34:I37) -> 0 | J38: Deduct from "Need"
C39: How much has already been awarded by this school as a Scholarship or Financial Aid | D39: 0
C40: How much has been awarded by any other Scholarship or Financial Aid in the UK | D40: 0 | H40: CONVERTING WEEKLY COSTS TO DOLLARS
A41: Calcs above/beside | C41: How much has been awarded by any other Scholarship or Financial Aid from the USA | E41: 0 | G41: UG Weeks | H41: UG Costs | I41: PG Costs | J41: PG Weeke
A42: =SUM(B28:B42) -> 0 | B42: =IF((D42="PRIVATE LOAN"),1,0) -> 0 | C42: Are you seeking a Government or Private loan (Sallie Mae), select from this drop-box | D42: Government Loan | G42: =D9 -> 223 | H42: =E46*G33*G42 -> 101777.2 | I42: =J42*G33*E46 -> 106797.6 | J42: =D10 -> 234
G43: =D9 -> 223 | H43: =E47*G34*G43 -> 31220 | I43: =J43*G34*E47 -> 32760 | J43: =J42 -> 234
A44: 2 | B44: Weekly Essential Costs - School Maximum Estimates - you can adjust the values but may be asked for proofs of your adjusted costs | G44: =G43 -> 223 | H44: =E48*G33*G44 -> 4683 | I44: =J44*G35*E48 -> 4914 | J44: =J43 -> 234
D45: School's Estimate per week | E45: Your Request | G45: =G44 -> 223 | H45: =E49*G34*G45 -> 9366 | I45: =J45*G36*E49 -> 9828 | J45: =J44 -> 234
C46: Room - Rent | D46: ='School DATA (Office Use Only)'!I11 -> 326 | E46: =MAX('School DATA (Office Use Only)'!H10:H11) -> 326 | G46: =G45 -> 223 | H46: =E50*G35*G46 -> 18732 | I46: =J46*G37*E50 -> 19656 | J46: =J45 -> 234
C47: Board - Food and Power | D47: ='School DATA (Office Use Only)'!H12+'School DATA (Office Use Only)'!H13 -> 100 | E47: ='School DATA (Office Use Only)'!H12+'School DATA (Office Use Only)'!H13 -> 100
C48: Books & Copying | D48: ='School DATA (Office Use Only)'!H14 -> 15 | E48: ='School DATA (Office Use Only)'!H14 -> 15
C49: Travelcard/Transport Costs | D49: ='School DATA (Office Use Only)'!H15 -> 30 | E49: ='School DATA (Office Use Only)'!H15 -> 30 | H49: CONVERTING ANNUAL COSTS TO DOLLARS | K49: Origination Fees
C50: Personal | D50: ='School DATA (Office Use Only)'!H16 -> 60 | E50: ='School DATA (Office Use Only)'!H16 -> 60
G51: =D7 -> 1.4 | H51: =E55*G51 -> 2170 | L51: % Rate | M51: Interest | N51: Final | O51: Actual
G52: =G51 -> 1.4 | H52: 477.4 | K52: Loan Type | M52: Rebate | N52: Rate | O52: Factor
A53: 3 | B53: Single Costs for the year - you may adjust or add extras in these columns - you may be asked for proof of your extra needs | G53: 1.4 | H53: 700 | K53: Sub Orig Fee | L53: ='School DATA (Office Use Only)'!D38 -> 1.057 | M53: ='School DATA (Office Use Only)'!E38 -> 0 | N53: =L53-M53 -> 1.057 | O53: =N53*0.01 -> 0.01057
D54: School's Estimate per Year | E54: =E45 -> Your Request | G54: 1.4 | H54: 660.8 | K54: Unsub Orig Fee | L54: ='School DATA (Office Use Only)'!D39 -> 1/057 | M54: ='School DATA (Office Use Only)'!E39 -> 0 | N54: =L54-M54 ->  | O54: =N54*0.01 -> 
C55: ='School DATA (Office Use Only)'!G19 -> 2 Midweek return flights with BA from Los Angeles to London | D55: ='School DATA (Office Use Only)'!H19 -> 1550 | E55: =D55 -> 1550 | G55: 1.4 | H55: 1050 | K55: PLUS Orig fee | L55: ='School DATA (Office Use Only)'!D40 -> 4.228 | M55: ='School DATA (Office Use Only)'!E40 -> 0 | N55: =L55-M55 -> 4.228 | O55: =N55*0.01 -> 0.04228
C56: ='School DATA (Office Use Only)'!G20 -> Visa Application / Flights to Interview | D56: ='School DATA (Office Use Only)'!H20 -> 341 | E56: =D56 -> 341 | G56: 1.4 | H56: 0
C57: ='School DATA (Office Use Only)'!G21 -> PC / Laptop | D57: ='School DATA (Office Use Only)'!H21 -> 500 | E57: 500 | G57: 1.4 | H57: 0
C58: ='School DATA (Office Use Only)'!G22 -> Visa £322 and NHS Charge £150 | D58: ='School DATA (Office Use Only)'!H22 -> 472 | E58: 472
C59: ='School DATA (Office Use Only)'!G23 -> Academic field trips | D59: ='School DATA (Office Use Only)'!H23 -> 750 | E59: 750 | H59: FINAL CALCULATIONS | K59: SUB NEED | L59: UNSUB NEED | M59: ORIG FEE NOT INC | N59: ORIG FEE INC
C60: ='School DATA (Office Use Only)'!G24 -> Add any other essential costs - write here - only in £ | D60: ='School DATA (Office Use Only)'!H24 -> 0 | E60: 0 | G60: Requested Cost of Attendance (Values rounded) | H60: $ | J60: CoA | K60: =H70 -> 209814
C61: ='School DATA (Office Use Only)'!G25 -> Add any other essential costs - write here - only in £ | D61: ='School DATA (Office Use Only)'!H25 -> 0 | E61: 0 | G61: Tuition Fees | H61: =ROUND(H33,0) -> 30800 | J61: Less EFC | K61: =-D36 -> 0
G62: Room | H62: =ROUND((IF(D31="N",I42,H42)),0) -> 106798 | J62: Need for Sub | K62: =IF((SUM(K60:K61)>0),(SUM(K60:K61)),0) -> 209814 | N62: =IF((K62<K64),(K64-K62),0) -> 0
A63: 4 | C63: YOUR ESTIMATED FINAL COSTS & US ED DEPT MAXIMUM LOAN ELIGIBILITY - YOU MAY BORROW LESS IF YOU CHOOSE | G63: Board | H63: =ROUND((IF(D31="N",I43,H43)),0) -> 32760 | J63: Sub available | K63: =G29 -> 0
C64: =G60 -> Requested Cost of Attendance (Values rounded) | D64: =H60 -> $ | G64: Books | H64: =ROUND((IF(D31="N",I44,H44)),0) -> 4914 | J64: Sub Calc | K64: =IF((((K62/(100-N53))*100)<K63),((K62/(100-N53))*100),K63) -> 0 | M64: =IF((N62>0),0,(K64*O53)) -> 0
C65: =G61 -> Tuition Fees | D65: =H61 -> 30800 | G65: Travel | H65: =ROUND((IF(D31="N",I45,H45)),0) -> 9828
C66: =G62 -> Room | D66: 106798 | G66: Personal | H66: =ROUND((IF(D31="N",I46,H46)),0) -> 19656 | J66: Need for Unsub | L66: =IF((N62>0),(K60+N62-K64),(K60-K64+M64)) -> 209814 | N66: =IF((((L68-L66)>0)),(L68-L66),0) -> 
C67: Board | D67: 32760 | G67: Other Essential Costs | H67: =SUM(H51:H57) -> 5058.2 | J67: Unsub available | L67: =G29+I29-K64 -> 92250
C68: Books | D68: 4914 | G68: Total Cost of Attendance | H68: =SUM(H61:H67) -> 209814.2 | J68: Unsub Calc | L68: =IF((((L66/(100-N54))*100)<L67),((L66/(100-N54))*100),L67) ->  | M68: =+IF((N66>0),0,(L68*O54)) -> 
C69: Travel | D69: 9828 | G69: Adjust for Sponsorship, Awards or other Aid | H69: =ROUND((-I38),0) -> 0
C70: Personal | D70: 19656 | G70: Total Requested Cost of Attendance | H70: =ROUND((SUM(H68:H69)),0) -> 209814 | J70: PLUS NEED
C71: Other Essential Costs | D71: 5058.2 | J71: Need for PLUS | K71: =IF((N66=0),(K60-K64-L68+M64+M68),0) -> 
C72: Total Cost of Attendance | D72: 209814.2
C73: Adjust for Sponsorship, Awards or other Aid | D73: 0
A74: =IF((D42="Private Loan"),"Private loan requested","") ->  | C74: =G70 -> Total Requested Cost of Attendance | D74: 209814 | G74: Maximum Govt. Loan you can borrow | H74: $ | J74: PLUS Available | K74: =H5-K64-L68 -> 
C75: =IF(((SUM(B32:B35))>0),"As you will be in places not allowed by your government you are not entitled to Federal Loans - only private loans","") ->  | G75: You could have borrowed these Govt. Loans
C76: =IF((A46>0),"For more information - click on this link to see your government regulations","") ->  | D76: =IF((A46>0),"https://ifap.ed.gov/dpcletters/GEN1420.html","") ->  | G76: ="Subsidised adjusted by EFC and prorated to "&(IF((D31="Y"),(E9*100),(E10*100)))&"%" -> Subsidised adjusted by EFC and prorated to 450% | H76: =K64 -> 0 | J76: PLUS Calc | K76: =IF((((K71/(100-N55)*100))<K74),((K71/(100-N55)*100)),(((K74+M64+M68)/(100-N55))*100)) -> 
C77: =IF((A46>0),"Maximum Private (Sallie Mae) loan we will certify is","") ->  | D77: =IF((A46>0),H74,"") ->  | G77: ="Unsubsidised prorated to "&(IF((D32="Y"),(E9*100),(E10*100)))&"%" -> Unsubsidised prorated to 450% | H77: =L68 -> 
C78: =IF((A46>0),"You must now go to the Sallie Mae website to apply for your loan. When done, send this form to us, same address as for federal loans, then we can connect to Sallie Mae to certify your application","") ->  | G78: =IF((J79=2),K79,(IF((H70>H5),"PLUS Loan to fulfil this CoA",""))) -> PLUS Loan to fulfil this CoA | I78: =IF((K74<K71),K71,"") ->  | J78: Indep Undergrad Score
C79: =IF((A46>0),"As you will apply for a Sallie Mae loan there is no need to complete anything below this line."," ") ->  | G79: =IF((J79=2),"","Maximum PLUS Loan allowed for this CoA") -> Maximum PLUS Loan allowed for this CoA | H79: =IF((J79=2),"",(IF((K71<K74),(K71-M68-M64),K74))) ->  | J79: =(IF(AND(D32="N",D31="Y"),1,0))+(IF((D35="I"),1,0)) -> 1 | K79: Independent Undergraduates are not eligible for a PLUS Loan
C80: =IF((D42=G12),G75,G74) -> Maximum Govt. Loan you can borrow | G80: Total Eligible before adjustment for Fees | H80: =SUM(H76:H79) -> 
C81: =IF((D31="N"),L29,G76) -> From July 2012 there is no Subsidised Loan for postgraduates | D81: =H76 -> 0 | E81: =IF((N62>0),"Grossed up for fees","") -> 
C82: =G77 -> Unsubsidised prorated to 450% | D82: =H77 ->  | E82: =IF((N66>0),"Grossed up for fees","") -> 
C83: =G78 -> PLUS Loan to fulfil this CoA | E83: =I78 ->  | H83: Qualify 1 | I83: THE COSTS YOU HAVE SUGGESTED ARE TOO HIGH TO BE ACCEPTABLE
C84: =G79 -> Maximum PLUS Loan allowed for this CoA | D84: =H79 ->  | H84: Qualify 2 | I84: Provide evidence of your needs for any increase to PLUS to be considered or borrow less in Section 6
C85: =G80 -> Total Eligible before adjustment for Fees | D85: =H80 ->  | H85: OK Statement | I85: You are allowed to borrow up to the values above
A87: 5 | C87: SCHOOL COMMENT ON YOUR PROPOSED COSTS & ELIGIBLE LOANS | G87: Max Loans Allowed Adjusted for Fees | H87: After Origination Fees You Get
C88: =IF(H68>H5, I83," ") -> THE COSTS YOU HAVE SUGGESTED ARE TOO HIGH TO BE ACCEPTABLE | G88: =ROUND(K64,0) -> 0 | H88: =ROUND(((G88*(1-O53))),0) -> 0
C89: =IF(H68>H5, I84,I85) -> Provide evidence of your needs for any increase to PLUS to be considered or borrow less in Section 6 | F89: =IF((D93>A93),("You cannot borrow more than "&A93),"") ->  | G89: =ROUND(L68,0) ->  | H89: =ROUND(((G89*(1-O54))),0) -> 
F90: =IF((D94>A94),("You cannot borrow more than "&A94),"") ->  | G90: =IF((J79=2),"",(ROUND(K76,0))) ->  | H90: =ROUND(((G90*(1-O55))),0) -> 
A91: 6 | C91: =IF((D42=G12),"THIS SECTION DOES NOT APPLY TO SALLIE MAE LOANS","YOU TELL US HOW MUCH WOULD YOU LIKE TO BORROW - YOU MAY REDUCE THE FIGURES IN BLUE") -> YOU TELL US HOW MUCH WOULD YOU LIKE TO BORROW - YOU MAY REDUCE THE FIGURES IN BLUE | F91: =IF((D95>A95),("You cannot borrow more than "&ROUND(A95,2)),"") ->  | G91: =SUM(G88:G90) ->  | H91: =SUM(H88:H90) -> 
A92: Max Loans Allowed Adjusted for Fees | B92: Government Fees *** Deducted | C92: State how much you would like to borrow for each loan type - adjust the figures in blue in the "Your Request" column | D92: Your Request - you may reduce these values | E92: After Origination Fees You Get | F92: =IF((E96<>D85),"Includes $"&(E96-D85)&" rounding differences","") ->  | H92: OK Statement 1 | I92: We will check everything you have provided with the USDE data and regulations
A93: =IF((D42=G12),0,G88) -> 0 | B93: =O53 -> 0.01057 | C93: =C81 -> From July 2012 there is no Subsidised Loan for postgraduates | D93: =A93 -> 0 | E93: =ROUND(((D93*(1-O53))),0) -> 0 | H93: OK Statement 2 | I93: If everything is correct we will originate your loans and issue a certificate for visa application
A94: =IF((D42=G12),0,G89) ->  | B94: =O54 ->  | C94: Unsubsudised | D94: =A94 ->  | E94: =ROUND(((D94*(1-O54))),0) ->  | H94: Qualify 1 | I94: You must provide evidence of your costs/needs before we can process your application
A95: =IF((D42=G12),0,G90) ->  | B95: =O55 -> 0.04228 | C95: =IF((J79=2),K79,"PLUS Loan (Adjusted up to include all fees)") -> PLUS Loan (Adjusted up to include all fees) | D95: =IF((A95=""),0,((ROUND(A95,0)))) ->  | E95: =ROUND(((D95*(1-O55))),0) ->  | H95: Qualify 2
A96: =IF((D42=G12),0,G91) ->  | C96: Total (after rounding, may be slightly higher than total of section 4) | D96: =SUM(D93:D95) ->  | E96: =SUM(E93:E95) -> 
A97: 7 School Responses | C97: =IF((D96<(H5*1.04)),I92,I94) -> 
C98: =IF((D96<(H5*1.04)),I93,I95) -> 
A100: 8 Government Fees *** | B100: =B93 -> 0.01057 | C100: =C93&" Origination Fee of "&L53&"% less Interest Rebate of "&M53&"%" -> From July 2012 there is no Subsidised Loan for postgraduates Origination Fee of 1.057% less Interest Rebate of 0%
B101: =B94 ->  | C101: =C94&" Origination Fee of "&L54&"% less Interest Rebate of "&M54&"%" -> Unsubsudised Origination Fee of 1/057% less Interest Rebate of 0%
B102: =B95 -> 0.04228 | C102: =C95&" Origination Fee of "&L55&"% less Interest Rebate of "&M55&"%" -> PLUS Loan (Adjusted up to include all fees) Origination Fee of 4.228% less Interest Rebate of 0%
C104: The exchange rate is artificially high to ( hopefully) cover origination fee increases
